{"text_format":"3","workbook":"xlsx","n_sheets":4,"sheets":["Start","Utgifter","Intäkter","Sammanfattning vinst – förlust"],"not_rendered":{"charts":1},"read":"whole","date_system":"1900"}

{"sheet":"Start","index":0,"n_rows":8,"n_cols":2,"rows_kept":8}
[null,"OM DEN HÄR MALLEN"]
[null,"Använd den här arbetsboken för en evenemangsbudget för att spåra utgifter och intäkter från ett evenemang."]
[null,"Fyll i evenemangets namn och ange information i tabeller i kalkylbladet Utgifter och kalkylbladet Intäkter."]
[null,"Summa utgifter och summa intäkter beräknas automatiskt."]
[null,"Sammanfattning av vinst och förlust och diagrammet uppdateras automatiskt i kalkylbladet Sammanfattning  vinst – förlust."]
[null,"Obs! "]
[null,"Ytterligare anvisningar finns i kolumn A i varje kalkylblad. Den här texten har avsiktligt dolts. Om du vill ta bort texten markerar du kolumn A och väljer sedan TA BORT. Om du vill att texten ska visas markerar du kolumn A och ändrar sedan teckenfärg."]
[null,"Om du vill läsa mer om tabeller trycker du på SKIFT och sedan på F10 i en tabell. Välj alternativet TABELL och sedan ALTERNATIV TEXT."]

{"sheet":"Utgifter","index":1,"n_rows":32,"n_cols":8,"rows_kept":32,"merged":[[0,1,0,4],[2,1,3,1]]}
["Ange beräknade och faktiska utgifter för varje kategori i respektive tabell i det här kalkylbladet. Anpassa rubriken för det här och andra kalkylblad genom att ange evenemangets namn i cell D1. Kalkylbladets underrubrik finns i cell H1. Anvisningar för hur du använder det här kalkylbladet finns i cellerna i den här kolumnen. Fler anvisningar finns i cell A3.","Evenemangsbudget för evenemangets namn",{"$nulls":5},"UTGIFTER"]
[]
["Etiketten Summa utgifter finns i cellen till höger, etiketten Beräknad i cell G3 och Faktisk i H3.","SUMMA UTGIFTER",{"$nulls":4},"Beräknad","Faktisk"]
["Summa beräknade utgifter finns i cell G4. Summa faktiska utgifter beräknas automatiskt i H4. Fler anvisningar finns i cell A6.",{"$nulls":5},{"$f":"SUM(C11,C19,C25,C32,G11,G19,G24)","v":{"v":882,"d":"882.00 kr"}},{"$f":"SUM(D11,D19,D25,D32,H11,H19,H24)","v":{"v":333,"d":"333.00 kr"}}]
[]
["Ange utgifter för lokal i tabellen som börjar i cellen till höger och utgifter för förfriskningar i tabellen som börjar i cell F6. Fler anvisningar finns i cell A13.","Lokal","Beräknad","Faktisk",null,"Förfriskningar","Beräknad","Faktisk"]
[null,"Avgifter för rum och sal",{"v":500,"d":"500.00 kr"},null,null,"Mat"]
[null,"Personal på plats",{"$nulls":3},"Dryck",{"v":20,"d":"20.00 kr"}]
[null,"Utrustning",{"$nulls":3},"Linne",null,{"v":20,"d":"20.00 kr"}]
[null,"Bord och stolar",{"$nulls":3},"Personal och serviceavgifter"]
[null,"Summa",{"$f":"SUBTOTAL(109,UtgifterFörLokal[Beräknad])","v":{"v":500,"d":"500.00 kr"}},{"$f":"SUBTOTAL(109,UtgifterFörLokal[Faktisk])","v":{"v":0,"d":"0.00 kr"}},null,"Summa",{"$f":"SUBTOTAL(109,UtgifterFörFörfriskningar[Beräknad])","v":{"v":20,"d":"20.00 kr"}},{"$f":"SUBTOTAL(109,UtgifterFörFörfriskningar[Faktisk])","v":{"v":20,"d":"20.00 kr"}}]
[]
["Ange utgifter för dekorationer i tabellen som börjar i cellen till höger och utgifter för program i tabellen som börjar i cell F13. Fler anvisningar finns i cell A21.","Dekorationer","Beräknad","Faktisk",null,"Program","Beräknad","Faktisk"]
[null,"Blommor",{"v":200,"d":"200.00 kr"},{"v":300,"d":"300.00 kr"},null,"Artister"]
[null,"Ljus",{"$nulls":3},"Talare",{"v":30,"d":"30.00 kr"}]
[null,"Belysning",{"$nulls":3},"Resor"]
[null,"Ballonger",{"$nulls":3},"Hotell"]
[null,"Pappersmaterial",{"$nulls":3},"Övrigt"]
[null,"Summa",{"$f":"SUBTOTAL(109,UtgifterFörDekorationer[Beräknad])","v":{"v":200,"d":"200.00 kr"}},{"$f":"SUBTOTAL(109,UtgifterFörDekorationer[Faktisk])","v":{"v":300,"d":"300.00 kr"}},null,"Summa",{"$f":"SUBTOTAL(109,UtgifterFörProgram[Beräknad])","v":{"v":30,"d":"30.00 kr"}},{"$f":"SUBTOTAL(109,UtgifterFörProgram[Faktisk])","v":{"v":0,"d":"0.00 kr"}}]
[]
["Ange utgifter för reklam i tabellen som börjar i cellen till höger och utgifter för priser i tabellen som börjar i cell F21. Fler anvisningar finns i cell A27.","Reklam","Beräknad","Faktisk",null,"Priser","Beräknad","Faktisk"]
[null,"Grafik",{"$nulls":3},"Band/plaketter/troféer"]
[null,"Fotokopiering/utskrifter",{"v":20,"d":"20.00 kr"},null,null,"Gåvor",{"v":100,"d":"100.00 kr"}]
[null,"Porto",{"$nulls":3},"Summa",{"$f":"SUBTOTAL(109,UtgifterFörPriser[Beräknad])","v":{"v":100,"d":"100.00 kr"}},{"$f":"SUBTOTAL(109,UtgifterFörPriser[Faktisk])","v":{"v":0,"d":"0.00 kr"}}]
[null,"Summa",{"$f":"SUBTOTAL(109,UtgifterFörReklam[Beräknad])","v":{"v":20,"d":"20.00 kr"}},{"$f":"SUBTOTAL(109,UtgifterFörReklam[Faktisk])","v":{"v":0,"d":"0.00 kr"}}]
[]
["Ange övriga utgifter i tabellen som börjar i cellen till höger.","Övrigt","Beräknad","Faktisk"]
[null,"Telefon",null,{"v":13,"d":"13.00 kr"}]
[null,"Transport",{"v":12,"d":"12.00 kr"}]
[null,"Kontorsmaterial"]
[null,"Faxtjänster"]
[null,"Summa",{"$f":"SUBTOTAL(109,ÖvrigaUtgifter[Beräknad])","v":{"v":12,"d":"12.00 kr"}},{"$f":"SUBTOTAL(109,ÖvrigaUtgifter[Faktisk])","v":{"v":13,"d":"13.00 kr"}}]

{"sheet":"Intäkter","index":2,"n_rows":29,"n_cols":7,"rows_kept":29,"merged":[[0,1,0,3],[2,1,3,1]]}
["Ange beräknad och faktisk intäkter för varje kategori i respektive tabell i det här kalkylbladet. Rubriken för det här kalkylbladet uppdateras automatiskt i cellen till höger. Cell G1 innehåller underrubriken. Anvisningar för hur du använder det här kalkylbladet finns i cellerna i den här kolumnen. Fler anvisningar finns i cell A3.",{"$f":"Utgifter!B1","v":"Evenemangsbudget för evenemangets namn"},{"$nulls":4},"INTÄKTER"]
[]
["Etiketten Summa intäkter finns i cellen till höger, etiketten Beräknad i cell F3 och Faktisk i G3.","SUMMA INTÄKTER",{"$nulls":3},"Beräknad","Faktisk"]
["Summa beräknade intäkter beräknas automatiskt i cell F4 och summa faktiska intäkter i G4.",{"$nulls":4},{"$f":"SUM(Inträde[[#Totals],[Beräknade intäkter]],ReklamIProgrammet[[#Totals],[Beräknade intäkter]],UtställareOchFörsäljare[[#Totals],[Beräknade intäkter]],SåldaProdukter[[#Totals],[Beräknade intäkter]])","v":{"v":1936,"d":"1,936.00 kr"}},{"$f":"SUM(Inträde[[#Totals],[Faktiska intäkter]],ReklamIProgrammet[[#Totals],[Faktiska intäkter]],UtställareOchFörsäljare[[#Totals],[Faktiska intäkter]],SåldaProdukter[[#Totals],[Faktiska intäkter]])","v":{"v":1831,"d":"1,831.00 kr"}}]
["Etiketten Inträde finns i cellen till höger.","INTRÄDE"]
["Ange beräknat och faktiskt inträdesantal med biljettpriser i tabellen som börjar i cellen till höger. Beräknade och faktiska intäkter från inträde beräknas automatiskt. Fler anvisningar finns i cell A11.","Beräknat antal","Faktiskt antal","Typ","Pris","Beräknade intäkter","Faktiska intäkter"]
[null,300,278,"Vuxna à",{"v":5,"d":"5.00 kr"},{"$f":"B7*E7","v":{"v":1500,"d":"1,500.00 kr"}},{"$f":"C7*E7","v":{"v":1390,"d":"1,390.00 kr"}}]
[null,197,195,"Barn à",{"v":2,"d":"2.00 kr"},{"$f":"B8*E8","v":{"v":394,"d":"394.00 kr"}},{"$f":"C8*E8","v":{"v":390,"d":"390.00 kr"}}]
[null,42,51,"Övriga à",{"v":1,"d":"1.00 kr"},{"$f":"B9*E9","v":{"v":42,"d":"42.00 kr"}},{"$f":"C9*E9","v":{"v":51,"d":"51.00 kr"}}]
[null,"Summa",{"$nulls":3},{"$f":"SUBTOTAL(109,Inträde[Beräknade intäkter])","v":{"v":1936,"d":"1,936.00 kr"}},{"$f":"SUBTOTAL(109,Inträde[Faktiska intäkter])","v":{"v":1831,"d":"1,831.00 kr"}}]
["Etiketten Reklam i programmet finns i cellen till höger.","REKLAM I PROGRAMMET"]
["Ange beräknat och faktiskt reklamantal och reklampris i tabellen som börjar i cellen till höger. Beräknade och faktiska intäkter från reklam beräknas automatiskt. Fler anvisningar finns i cell A17.","Beräknat antal","Faktiskt antal","Typ","Pris","Beräknade intäkter","Faktiska intäkter"]
[null,12,null,"Omslag à",null,{"$f":"B13*E13","v":{"v":0,"d":"0.00 kr"}},{"$f":"C13*E13","v":{"v":0,"d":"0.00 kr"}}]
[null,null,158,"A5 à",null,{"$f":"B14*E14","v":{"v":0,"d":"0.00 kr"}},{"$f":"C14*E14","v":{"v":0,"d":"0.00 kr"}}]
[null,4,null,"A6 à",null,{"$f":"B15*E15","v":{"v":0,"d":"0.00 kr"}},{"$f":"C15*E15","v":{"v":0,"d":"0.00 kr"}}]
[null,"Summa",{"$nulls":3},{"$f":"SUBTOTAL(109,ReklamIProgrammet[Beräknade intäkter])","v":{"v":0,"d":"0.00 kr"}},{"$f":"SUBTOTAL(109,ReklamIProgrammet[Faktiska intäkter])","v":{"v":0,"d":"0.00 kr"}}]
["Etiketten Utställare och försäljare finns i cellen till höger.","UTSTÄLLARE/FÖRSÄLJARE"]
["Ange beräknat och faktiskt antal utställare och försäljare samt monterpris i tabellen som börjar i cellen till höger. Beräknade och faktiska intäkter beräknas automatiskt. Fler anvisningar finns i cell A23.","Beräknat antal","Faktiskt antal","Typ","Pris","Beräknade intäkter","Faktiska intäkter"]
[null,23,null,"Stora montrar à",null,{"$f":"B19*E19","v":{"v":0,"d":"0.00 kr"}},{"$f":"C19*E19","v":{"v":0,"d":"0.00 kr"}}]
[null,354,null,"Mellanstora montrar à",null,{"$f":"B20*E20","v":{"v":0,"d":"0.00 kr"}},{"$f":"C20*E20","v":{"v":0,"d":"0.00 kr"}}]
[null,56,null,"Små montrar à",null,{"$f":"B21*E21","v":{"v":0,"d":"0.00 kr"}},{"$f":"C21*E21","v":{"v":0,"d":"0.00 kr"}}]
[null,"Summa",{"$nulls":3},{"$f":"SUBTOTAL(109,UtställareOchFörsäljare[Beräknade intäkter])","v":{"v":0,"d":"0.00 kr"}},{"$f":"SUBTOTAL(109,UtställareOchFörsäljare[Faktiska intäkter])","v":{"v":0,"d":"0.00 kr"}}]
["Etiketten Sålda produkter finns i cellen till höger.","SÅLDA PRODUKTER"]
["Ange beräknat och faktiskt antal sålda produkter och produktpris i tabellen som börjar i cellen till höger. Beräknade och faktiska intäkter beräknas automatiskt.","Beräknat antal","Faktiskt antal","Typ","Pris","Beräknade intäkter","Faktiska intäkter"]
[{"$nulls":3},"Produkter à",null,{"$f":"B25*E25","v":{"v":0,"d":"0.00 kr"}},{"$f":"C25*E25","v":{"v":0,"d":"0.00 kr"}}]
[null,123,null,"Produkter à",null,{"$f":"B26*E26","v":{"v":0,"d":"0.00 kr"}},{"$f":"C26*E26","v":{"v":0,"d":"0.00 kr"}}]
[{"$nulls":3},"Produkter à",null,{"$f":"B27*E27","v":{"v":0,"d":"0.00 kr"}},{"$f":"C27*E27","v":{"v":0,"d":"0.00 kr"}}]
[null,13,null,"Produkter à",null,{"$f":"B28*E28","v":{"v":0,"d":"0.00 kr"}},{"$f":"C28*E28","v":{"v":0,"d":"0.00 kr"}}]
[null,"Summa",{"$nulls":3},{"$f":"SUBTOTAL(109,SåldaProdukter[Beräknade intäkter])","v":{"v":0,"d":"0.00 kr"}},{"$f":"SUBTOTAL(109,SåldaProdukter[Faktiska intäkter])","v":{"v":0,"d":"0.00 kr"}}]

{"sheet":"Sammanfattning vinst – förlust","index":3,"n_rows":8,"n_cols":7,"rows_kept":8,"merged":[[0,1,0,3],[2,4,11,6]]}
["Sammanfattning av vinst och förlust och diagrammet som visar summa intäkter och utgifter uppdateras automatiskt i det här kalkylbladet. Rubriken för det här kalkylbladet uppdateras automatiskt i cellen till höger. Cell G1 och G2 innehåller underrubriken. Anvisningar för hur du använder det här kalkylbladet finns i cellerna i den här kolumnen. Fler anvisningar finns i cell A3.",{"$f":"Utgifter!B1","v":"Evenemangsbudget för evenemangets namn"},{"$nulls":4},"VINST "]
[{"$nulls":6},"och förlust – sammanfattning"]
["Stapeldiagram med en jämförelse av beräknade intäkter och utgifter och faktiska intäkter och utgifter finns i cell E3.",{"$nulls":3},"Stapeldiagram som visar en jämförelse av beräknade intäkter och utgifter och faktiska intäkter och utgifter finns i den här cellen."]
["Sammanfattningstabellen som börjar i cellen till höger uppdateras automatiskt. Fler anvisningar finns i cell A8."," Summa","Beräknad","Faktisk"]
[null,"Summa intäkter",{"$f":"Intäkter!F4","v":{"v":1936,"d":"1,936.00 kr"}},{"$f":"Intäkter!G4","v":{"v":1831,"d":"1,831.00 kr"}}]
[null,"Summa utgifter",{"$f":"Utgifter!G4","v":{"v":882,"d":"882.00 kr"}},{"$f":"Utgifter!H4","v":{"v":333,"d":"333.00 kr"}}]
[]
["Beräknad summa vinst eller förlust beräknas automatiskt i cell C8 och faktiskt summa vinst eller förlust i cell D8.","Summa vinst              (eller förlust)",{"$f":"C5-C6","v":{"v":1054,"d":"1,054.00 kr"}},{"$f":"D5-D6","v":{"v":1498,"d":"1,498.00 kr"}}]